[Event "Early-Titled-Tuesday-Blitz-March-12-2024"]
[Site "Chess.com"]
[Date "2024.03.12"]
[Round "8"]
[White "FaustinoOro"]
[Black "GothamChess"]
[Result "1-0"]
[WhiteElo "2897"]
[BlackElo "2681"]
[TimeControl "180+1"]
[EndTime "9:27:38 PDT"]
[Termination "FaustinoOro won on time"]

1. Nf3 {[%clk 0:02:59.9]} 1... g6 {[%clk 0:02:59.3]} 2. e4 {[%clk 0:02:59.3]}
2... Bg7 {[%clk 0:03:00]} 3. d4 {[%clk 0:02:59.6]} 3... d6 {[%clk 0:03:00.6]} 4.
Bc4 {[%clk 0:02:59.5]} 4... a6 {[%clk 0:03:00]} 5. O-O {[%clk 0:02:59]} 5... Nc6
{[%clk 0:03:00.1]} 6. h3 {[%clk 0:02:56.5]} 6... Nf6 {[%clk 0:02:54.9]} 7. Qe2
{[%clk 0:02:52.7]} 7... O-O {[%clk 0:02:48.9]} 8. c3 {[%clk 0:02:52.4]} 8... e5
{[%clk 0:02:43.5]} 9. dxe5 {[%clk 0:02:41.6]} 9... dxe5 {[%clk 0:02:43.3]} 10.
Rd1 {[%clk 0:02:40.1]} 10... Qe7 {[%clk 0:02:42.2]} 11. Nbd2 {[%clk 0:02:36.1]}
11... b5 {[%clk 0:02:25.9]} 12. Bb3 {[%clk 0:02:35.4]} 12... Na5 {[%clk
0:02:23]} 13. Bc2 {[%clk 0:02:33.5]} 13... Bb7 {[%clk 0:02:14.4]} 14. b4 {[%clk
0:02:19]} 14... Nc6 {[%clk 0:02:07.9]} 15. a4 {[%clk 0:02:18.4]} 15... Na7
{[%clk 0:01:58.7]} 16. Nb3 {[%clk 0:02:06.8]} 16... Rfd8 {[%clk 0:01:51.7]} 17.
Nc5 {[%clk 0:01:59.8]} 17... Bc6 {[%clk 0:01:51.1]} 18. Bg5 {[%clk 0:01:42.6]}
18... Rxd1+ {[%clk 0:01:43.3]} 19. Rxd1 {[%clk 0:01:41]} 19... h6 {[%clk
0:01:39.2]} 20. Bxf6 {[%clk 0:01:37.5]} 20... Bxf6 {[%clk 0:01:39.8]} 21. Ra1
{[%clk 0:01:36.6]} 21... a5 {[%clk 0:01:32.9]} 22. axb5 {[%clk 0:01:28.6]} 22...
Nxb5 {[%clk 0:01:31.8]} 23. Qc4 {[%clk 0:01:12.2]} 23... Nd6 {[%clk 0:01:20.4]}
24. Qd3 {[%clk 0:01:08.3]} 24... axb4 {[%clk 0:01:15]} 25. Rxa8+ {[%clk
0:01:07.6]} 25... Bxa8 {[%clk 0:01:15.7]} 26. cxb4 {[%clk 0:01:08.3]} 26... Bc6
{[%clk 0:01:09.4]} 27. Ba4 {[%clk 0:01:00.1]} 27... Qe8 {[%clk 0:01:02.2]} 28.
Bxc6 {[%clk 0:00:41.1]} 28... Qxc6 {[%clk 0:01:03.1]} 29. Nd2 {[%clk 0:00:41.1]}
29... Be7 {[%clk 0:00:58.5]} 30. Ndb3 {[%clk 0:00:37]} 30... Qb6 {[%clk
0:00:50.9]} 31. Qc3 {[%clk 0:00:33.9]} 31... f6 {[%clk 0:00:28.8]} 32. Nd2
{[%clk 0:00:30.2]} 32... Qc6 {[%clk 0:00:22.9]} 33. Qb3+ {[%clk 0:00:26.6]}
33... Nf7 {[%clk 0:00:23.3]} 34. Nd3 {[%clk 0:00:20.8]} 34... Qd7 {[%clk
0:00:19.2]} 35. Nc4 {[%clk 0:00:18.3]} 35... Qd4 {[%clk 0:00:17.8]} 36. Ne3
{[%clk 0:00:16.1]} 36... Qxe4 {[%clk 0:00:14.6]} 37. Nd5 {[%clk 0:00:16.7]}
37... Bd8 {[%clk 0:00:11.5]} 38. Nc5 {[%clk 0:00:12.6]} 38... Qe1+ {[%clk
0:00:11.8]} 39. Kh2 {[%clk 0:00:13]} 39... Qxf2 {[%clk 0:00:11.1]} 40. Ne6
{[%clk 0:00:13.6]} 40... Qd2 {[%clk 0:00:03.3]} 41. Nxd8 {[%clk 0:00:07.5]}
41... Nxd8 {[%clk 0:00:03.4]} 42. Nxf6+ {[%clk 0:00:05]} 42... Kg7 {[%clk
0:00:03.4]} 43. Ne8+ {[%clk 0:00:04.5]} 43... Kf8 {[%clk 0:00:03.8]} 44. Nxc7
{[%clk 0:00:05.2]} 44... Qf4+ {[%clk 0:00:03.9]} 45. Qg3 {[%clk 0:00:05.3]}
45... Kf7 {[%clk 0:00:02.2]} 46. Nd5 {[%clk 0:00:05]} 46... Qxg3+ {[%clk
0:00:02.3]} 47. Kxg3 {[%clk 0:00:05.2]} 47... Ke6 {[%clk 0:00:03]} 48. Ne3
{[%clk 0:00:05.5]} 48... Nc6 {[%clk 0:00:03.3]} 49. b5 {[%clk 0:00:05.8]} 49...
Nd4 {[%clk 0:00:03.8]} 50. b6 {[%clk 0:00:06.5]} 50... Kd6 {[%clk 0:00:04]} 51.
Nc4+ {[%clk 0:00:04]} 51... Kc6 {[%clk 0:00:02.7]} 52. Nxe5+ {[%clk 0:00:04.5]}
52... Kxb6 {[%clk 0:00:03.3]} 53. Nxg6 {[%clk 0:00:05.4]} 53... Kc7 {[%clk
0:00:02.8]} 54. Kg4 {[%clk 0:00:05.8]} 54... Ne2 {[%clk 0:00:02.3]} 55. Kh5
{[%clk 0:00:04.7]} 55... Nd4 {[%clk 0:00:01.5]} 56. Kxh6 {[%clk 0:00:04.5]}
56... Nf5+ {[%clk 0:00:01.4]} 57. Kg5 {[%clk 0:00:04.9]} 57... Ne3 {[%clk
0:00:02.3]} 58. g4 {[%clk 0:00:05.3]} 1-0

[Event "Early-Titled-Tuesday-Blitz-March-12-2024"]
[Site "Chess.com"]
[Date "2024.03.12"]
[Round "8"]
[White "RobertoJBM"]
[Black "BilicVladimir"]
[Result "0-1"]
[WhiteElo "2813"]
[BlackElo "2682"]
[TimeControl "180+1"]
[EndTime "9:27:38 PDT"]
[Termination "BilicVladimir won by resignation"]

1. e4 {[%clk 0:03:00.9]} 1... e6 {[%clk 0:02:59.5]} 2. d4 {[%clk 0:03:00.4]}
2... d5 {[%clk 0:03:00.1]} 3. Nd2 {[%clk 0:02:59.2]} 3... dxe4 {[%clk
0:02:59.7]} 4. Nxe4 {[%clk 0:02:59.3]} 4... Nd7 {[%clk 0:03:00.6]} 5. Nf3 {[%clk
0:02:58.5]} 5... Ngf6 {[%clk 0:03:00.7]} 6. Nxf6+ {[%clk 0:02:58.2]} 6... Nxf6
{[%clk 0:03:00.2]} 7. Be3 {[%clk 0:02:58]} 7... Nd5 {[%clk 0:02:59.1]} 8. Qd2
{[%clk 0:02:52.1]} 8... Nxe3 {[%clk 0:02:57.6]} 9. fxe3 {[%clk 0:02:50.7]} 9...
g6 {[%clk 0:02:53.6]} 10. Bd3 {[%clk 0:02:47.9]} 10... Bg7 {[%clk 0:02:50.8]}
11. O-O {[%clk 0:02:47.9]} 11... O-O {[%clk 0:02:49.7]} 12. c3 {[%clk
0:02:45.7]} 12... b6 {[%clk 0:02:49.6]} 13. Qe2 {[%clk 0:02:39.1]} 13... c5
{[%clk 0:02:47.5]} 14. Rad1 {[%clk 0:02:38.4]} 14... Qc7 {[%clk 0:02:47]} 15.
Ng5 {[%clk 0:02:32.9]} 15... Bb7 {[%clk 0:02:40.2]} 16. Be4 {[%clk 0:02:31.5]}
16... Rad8 {[%clk 0:02:35.1]} 17. Bxb7 {[%clk 0:02:30.5]} 17... Qxb7 {[%clk
0:02:34.9]} 18. Qf3 {[%clk 0:02:19]} 18... Qc7 {[%clk 0:02:28]} 19. Rd2 {[%clk
0:02:06.6]} 19... Rd5 {[%clk 0:02:22.8]} 20. Ne4 {[%clk 0:02:01.9]} 20... Rf5
{[%clk 0:02:21.4]} 21. Qe2 {[%clk 0:01:56.2]} 21... Rxf1+ {[%clk 0:02:20.8]} 22.
Qxf1 {[%clk 0:01:54.3]} 22... cxd4 {[%clk 0:02:12]} 23. exd4 {[%clk 0:01:52.3]}
23... Rd8 {[%clk 0:01:58.9]} 24. Qe2 {[%clk 0:01:41.9]} 24... Rd7 {[%clk
0:01:57]} 25. g3 {[%clk 0:01:40.3]} 25... Qd8 {[%clk 0:01:55.7]} 26. Qc4 {[%clk
0:01:20.6]} 26... Rd5 {[%clk 0:01:51.4]} 27. Re2 {[%clk 0:01:15.9]} 27... e5
{[%clk 0:01:48.4]} 28. dxe5 {[%clk 0:01:14]} 28... Rxe5 {[%clk 0:01:43.3]} 29.
Rd2 {[%clk 0:01:04.7]} 29... Qe7 {[%clk 0:01:31.9]} 30. Qc8+ {[%clk 0:00:30.8]}
30... Bf8 {[%clk 0:01:30.9]} 31. Nf2 {[%clk 0:00:21]} 31... Re2 {[%clk 0:01:20]}
32. Qd8 {[%clk 0:00:04.2]} 32... Qe3 {[%clk 0:01:12.3]} 33. Rxe2 {[%clk
0:00:02.7]} 33... Qxe2 {[%clk 0:01:12.6]} 34. Qd5 {[%clk 0:00:01.7]} 34... Qxb2
{[%clk 0:01:09.5]} 35. Ne4 {[%clk 0:00:02.3]} 35... Qc1+ {[%clk 0:00:50.1]} 36.
Kg2 {[%clk 0:00:02.6]} 36... Qc2+ {[%clk 0:00:48.5]} 37. Kg1 {[%clk 0:00:03.1]}
37... Qe2 {[%clk 0:00:36.5]} 38. Ng5 {[%clk 0:00:01.9]} 38... Qe7 {[%clk
0:00:34.1]} 39. Kg2 {[%clk 0:00:01.9]} 39... h6 {[%clk 0:00:32.5]} 40. Nf3
{[%clk 0:00:01.9]} 40... Bg7 {[%clk 0:00:32]} 41. c4 {[%clk 0:00:01.7]} 41...
Kh7 {[%clk 0:00:31.9]} 42. h4 {[%clk 0:00:01.9]} 42... Qe2+ {[%clk 0:00:27.8]}
43. Kh3 {[%clk 0:00:01.8]} 43... Qe6+ {[%clk 0:00:21.2]} 44. Qxe6 {[%clk
0:00:01.1]} 44... fxe6 {[%clk 0:00:21.5]} 45. Kg4 {[%clk 0:00:01.7]} 45... Bf6
{[%clk 0:00:21.1]} 46. Kf4 {[%clk 0:00:01.9]} 46... Kg7 {[%clk 0:00:20.5]} 47.
g4 {[%clk 0:00:02.4]} 47... Kf7 {[%clk 0:00:20.5]} 48. Ke4 {[%clk 0:00:02.5]}
48... h5 {[%clk 0:00:20.1]} 49. g5 {[%clk 0:00:02.4]} 49... Bg7 {[%clk
0:00:19.2]} 50. a4 {[%clk 0:00:03.3]} 50... Ke7 {[%clk 0:00:19.4]} 51. Ne5
{[%clk 0:00:02.3]} 51... Bxe5 {[%clk 0:00:17.5]} 52. Kxe5 {[%clk 0:00:03.2]}
52... a5 {[%clk 0:00:16.2]} 53. Ke4 {[%clk 0:00:02.5]} 53... Kd6 {[%clk
0:00:16.5]} 54. Kd4 {[%clk 0:00:02.7]} 54... e5+ {[%clk 0:00:17]} 55. Ke4 {[%clk
0:00:03.3]} 55... Ke6 {[%clk 0:00:17.6]} 56. Ke3 {[%clk 0:00:03.9]} 56... Kf5
{[%clk 0:00:17.8]} 57. Kf3 {[%clk 0:00:04.4]} 57... e4+ {[%clk 0:00:18.2]} 58.
Ke3 {[%clk 0:00:04.9]} 58... Ke5 {[%clk 0:00:18.9]} 0-1

[Event "Early-Titled-Tuesday-Blitz-March-12-2024"]
[Site "Chess.com"]
[Date "2024.03.12"]
[Round "8"]
[White "AccioChess"]
[Black "SaiAgni_98"]
[Result "1-0"]
[WhiteElo "2440"]
[BlackElo "2547"]
[TimeControl "180+1"]
[EndTime "9:27:42 PDT"]
[Termination "AccioChess won on time"]

1. Nf3 {[%clk 0:02:53.1]} 1... Nf6 {[%clk 0:02:57.5]} 2. g3 {[%clk 0:02:53]}
2... d6 {[%clk 0:02:56.7]} 3. Bg2 {[%clk 0:02:53.9]} 3... e5 {[%clk 0:02:56.2]}
4. O-O {[%clk 0:02:53.8]} 4... Be7 {[%clk 0:02:55.6]} 5. d4 {[%clk 0:02:54]}
5... Nbd7 {[%clk 0:02:54.7]} 6. c4 {[%clk 0:02:51.1]} 6... O-O {[%clk
0:02:54.3]} 7. Nc3 {[%clk 0:02:51.4]} 7... c6 {[%clk 0:02:53.5]} 8. b3 {[%clk
0:02:51.5]} 8... a5 {[%clk 0:02:46.7]} 9. Bb2 {[%clk 0:02:51.1]} 9... exd4
{[%clk 0:02:41.1]} 10. Nxd4 {[%clk 0:02:50.4]} 10... Nc5 {[%clk 0:02:41.7]} 11.
Rc1 {[%clk 0:02:43.5]} 11... Re8 {[%clk 0:02:38.4]} 12. Qc2 {[%clk 0:02:41.6]}
12... Qb6 {[%clk 0:02:36.6]} 13. Rfd1 {[%clk 0:02:21.7]} 13... Na6 {[%clk
0:02:35.8]} 14. Nf5 {[%clk 0:02:15]} 14... Bxf5 {[%clk 0:01:56.6]} 15. Qxf5
{[%clk 0:02:15.9]} 15... Qc5 {[%clk 0:01:55.1]} 16. Qc2 {[%clk 0:02:01.1]} 16...
Nb4 {[%clk 0:01:54.1]} 17. Qb1 {[%clk 0:02:01.1]} 17... Ng4 {[%clk 0:01:50.9]}
18. Ne4 {[%clk 0:01:57.8]} 18... Qh5 {[%clk 0:01:50.9]} 19. h3 {[%clk
0:01:56.9]} 19... Ne5 {[%clk 0:01:36]} 20. a3 {[%clk 0:01:20.9]} 20... Na6
{[%clk 0:01:35.9]} 21. f4 {[%clk 0:01:15.3]} 21... Ng6 {[%clk 0:01:22.4]} 22. e3
{[%clk 0:01:07.7]} 22... Nc5 {[%clk 0:01:05.6]} 23. g4 {[%clk 0:00:49.4]} 23...
Qh4 {[%clk 0:01:04.8]} 24. Nxc5 {[%clk 0:00:41.7]} 24... dxc5 {[%clk 0:01:05]}
25. Rd7 {[%clk 0:00:29.5]} 25... Bf6 {[%clk 0:01:00.3]} 26. Bxf6 {[%clk
0:00:05.4]} 26... Qxf6 {[%clk 0:01:00.8]} 27. Qd3 {[%clk 0:00:05.1]} 27... Rad8
{[%clk 0:00:52.6]} 28. g5 {[%clk 0:00:05]} 28... Rxd7 {[%clk 0:00:52.3]} 29.
Qxd7 {[%clk 0:00:05.9]} 29... Qd8 {[%clk 0:00:47.8]} 30. Qxd8 {[%clk 0:00:05.4]}
30... Rxd8 {[%clk 0:00:48.2]} 31. Rc2 {[%clk 0:00:05.4]} 31... Nh4 {[%clk
0:00:44.1]} 32. Bf1 {[%clk 0:00:04.9]} 32... f6 {[%clk 0:00:33.4]} 33. gxf6
{[%clk 0:00:04.1]} 33... gxf6 {[%clk 0:00:34.3]} 34. Kf2 {[%clk 0:00:04.6]}
34... Kf7 {[%clk 0:00:33.8]} 35. Kg3 {[%clk 0:00:04.4]} 35... Nf5+ {[%clk
0:00:32.3]} 36. Kf3 {[%clk 0:00:04.8]} 36... Rg8 {[%clk 0:00:30.9]} 37. Rd2
{[%clk 0:00:04.3]} 37... Rg3+ {[%clk 0:00:29.2]} 38. Kf2 {[%clk 0:00:04.6]}
38... Rg7 {[%clk 0:00:17]} 39. Bd3 {[%clk 0:00:04.4]} 39... Ke6 {[%clk
0:00:15.7]} 40. Bxf5+ {[%clk 0:00:04.3]} 40... Kxf5 {[%clk 0:00:15.5]} 41. Kf3
{[%clk 0:00:04.2]} 41... Ke6 {[%clk 0:00:15.2]} 42. Rd8 {[%clk 0:00:04]} 42...
Rg1 {[%clk 0:00:06.9]} 43. Rb8 {[%clk 0:00:04.3]} 43... Rf1+ {[%clk 0:00:05.5]}
44. Ke2 {[%clk 0:00:03.8]} 44... Rh1 {[%clk 0:00:03.9]} 45. Rxb7 {[%clk
0:00:04.3]} 45... Rxh3 {[%clk 0:00:03.5]} 46. Rc7 {[%clk 0:00:04.7]} 46... Kd6
{[%clk 0:00:03.1]} 47. Ra7 {[%clk 0:00:04.9]} 47... Rh2+ {[%clk 0:00:03.2]} 48.
Kd3 {[%clk 0:00:05]} 48... Rb2 {[%clk 0:00:02.5]} 49. Rxa5 {[%clk 0:00:05.3]}
49... Rxb3+ {[%clk 0:00:02.5]} 50. Ke4 {[%clk 0:00:06]} 50... h5 {[%clk
0:00:00.8]} 51. Ra7 {[%clk 0:00:06.5]} 1-0

[Event "Early-Titled-Tuesday-Blitz-March-12-2024"]
[Site "Chess.com"]
[Date "2024.03.12"]
[Round "8"]
[White "zajka-molotok"]
[Black "Matibar"]
[Result "1-0"]
[WhiteElo "2555"]
[BlackElo "2751"]
[TimeControl "180+1"]
[EndTime "9:27:49 PDT"]
[Termination "zajka-molotok won on time"]

1. e4 {[%clk 0:03:00.9]} 1... e6 {[%clk 0:02:54.3]} 2. d4 {[%clk 0:03:00]} 2...
d5 {[%clk 0:02:54.5]} 3. exd5 {[%clk 0:02:59.3]} 3... exd5 {[%clk 0:02:54.3]} 4.
Nf3 {[%clk 0:02:58.9]} 4... Bd6 {[%clk 0:02:51.5]} 5. Bd3 {[%clk 0:02:58.5]}
5... Ne7 {[%clk 0:02:51.6]} 6. O-O {[%clk 0:02:55.6]} 6... O-O {[%clk
0:02:51.7]} 7. Re1 {[%clk 0:02:54.1]} 7... Nbc6 {[%clk 0:02:48.7]} 8. c3 {[%clk
0:02:53.5]} 8... Bf5 {[%clk 0:02:48.5]} 9. Bg5 {[%clk 0:02:49.3]} 9... f6 {[%clk
0:02:47.9]} 10. Bh4 {[%clk 0:02:48.5]} 10... Qd7 {[%clk 0:02:46.7]} 11. Bg3
{[%clk 0:02:45.5]} 11... Bxg3 {[%clk 0:02:43.2]} 12. hxg3 {[%clk 0:02:44.9]}
12... Bxd3 {[%clk 0:02:41.9]} 13. Qxd3 {[%clk 0:02:44.4]} 13... Rae8 {[%clk
0:02:42.4]} 14. Nbd2 {[%clk 0:02:43.5]} 14... Nf5 {[%clk 0:02:39.8]} 15. Rxe8
{[%clk 0:02:37]} 15... Rxe8 {[%clk 0:02:38.8]} 16. Re1 {[%clk 0:02:37.6]} 16...
Nd6 {[%clk 0:02:35.8]} 17. Kf1 {[%clk 0:02:29.4]} 17... g6 {[%clk 0:02:26.5]}
18. Rxe8+ {[%clk 0:02:27.2]} 18... Qxe8 {[%clk 0:02:26.4]} 19. Qe2 {[%clk
0:02:26.1]} 19... Qd7 {[%clk 0:02:17.9]} 20. Qd3 {[%clk 0:02:22.2]} 20... Kf7
{[%clk 0:02:15.8]} 21. Nb3 {[%clk 0:02:20.7]} 21... b6 {[%clk 0:02:15.2]} 22.
Nbd2 {[%clk 0:02:18.7]} 22... a5 {[%clk 0:02:13.2]} 23. a4 {[%clk 0:02:14.2]}
23... Ne7 {[%clk 0:02:02.3]} 24. b3 {[%clk 0:02:13.7]} 24... h5 {[%clk
0:02:01.8]} 25. Ne1 {[%clk 0:02:04.2]} 25... Qe6 {[%clk 0:01:52.7]} 26. Nc2
{[%clk 0:02:01.7]} 26... Ne4 {[%clk 0:01:51.9]} 27. Ne3 {[%clk 0:01:53.2]} 27...
Nxd2+ {[%clk 0:01:27.6]} 28. Qxd2 {[%clk 0:01:52.9]} 28... Qe4 {[%clk
0:01:27.4]} 29. Qc2 {[%clk 0:01:52]} 29... f5 {[%clk 0:01:24.9]} 30. Ke2 {[%clk
0:01:44.3]} 30... g5 {[%clk 0:01:16.1]} 31. f3 {[%clk 0:01:34.2]} 31... Qe6
{[%clk 0:00:57.3]} 32. Kf2 {[%clk 0:01:34.2]} 32... Kf6 {[%clk 0:00:56.5]} 33.
Qd3 {[%clk 0:01:32.5]} 33... Ng6 {[%clk 0:00:56]} 34. Qb5 {[%clk 0:01:28.4]}
34... c6 {[%clk 0:00:42.6]} 35. Qxb6 {[%clk 0:01:27.7]} 35... f4 {[%clk
0:00:29.3]} 36. Qd8+ {[%clk 0:01:25.7]} 36... Kf7 {[%clk 0:00:25.2]} 37. gxf4
{[%clk 0:01:16.5]} 37... gxf4 {[%clk 0:00:23.7]} 38. Nf1 {[%clk 0:01:13.1]}
38... h4 {[%clk 0:00:22.2]} 39. Qxa5 {[%clk 0:01:07.9]} 39... Qf5 {[%clk
0:00:19.9]} 40. Qc7+ {[%clk 0:01:06.4]} 40... Ne7 {[%clk 0:00:19.5]} 41. Qe5
{[%clk 0:01:03.5]} 41... Qc2+ {[%clk 0:00:19.3]} 42. Kg1 {[%clk 0:01:01.5]}
42... Ng6 {[%clk 0:00:18]} 43. Qc7+ {[%clk 0:01:00.2]} 43... Kf8 {[%clk
0:00:15.9]} 44. Qxc6 {[%clk 0:01:00.3]} 44... Kg7 {[%clk 0:00:10]} 45. a5 {[%clk
0:00:55.9]} 45... h3 {[%clk 0:00:10]} 46. Qd7+ {[%clk 0:00:55.6]} 46... Kf6
{[%clk 0:00:08.6]} 47. Qxh3 {[%clk 0:00:54.6]} 47... Qxc3 {[%clk 0:00:08.9]} 48.
Qd7 {[%clk 0:00:38.1]} 48... Qxd4+ {[%clk 0:00:09]} 49. Kh1 {[%clk 0:00:37.6]}
49... Qd1 {[%clk 0:00:08.9]} 50. Kg1 {[%clk 0:00:35]} 50... Qd4+ {[%clk
0:00:08.1]} 51. Kh2 {[%clk 0:00:31.2]} 51... Qf2 {[%clk 0:00:08.2]} 52. Qc6+
{[%clk 0:00:13.5]} 52... Kg7 {[%clk 0:00:07]} 53. Qc7+ {[%clk 0:00:11.1]} 53...
Kh6 {[%clk 0:00:06.8]} 54. Qc1 {[%clk 0:00:10]} 54... Kg5 {[%clk 0:00:04]} 55.
Qa1 {[%clk 0:00:04.8]} 55... d4 {[%clk 0:00:02]} 56. Qc1 {[%clk 0:00:04.9]}
56... Nh4 {[%clk 0:00:02]} 57. Qc5+ {[%clk 0:00:04.4]} 57... Nf5 {[%clk
0:00:02]} 58. a6 {[%clk 0:00:01.6]} 1-0

[Event "Early-Titled-Tuesday-Blitz-March-12-2024"]
[Site "Chess.com"]
[Date "2024.03.12"]
[Round "8"]
[White "FormerProdigy"]
[Black "alexrustemov"]
[Result "1-0"]
[WhiteElo "2981"]
[BlackElo "2857"]
[TimeControl "180+1"]
[EndTime "9:27:51 PDT"]
[Termination "FormerProdigy won on time"]

1. e4 {[%clk 0:03:00.9]} 1... e6 {[%clk 0:03:00]} 2. d4 {[%clk 0:03:01.4]} 2...
d5 {[%clk 0:03:00.5]} 3. Nc3 {[%clk 0:03:01.8]} 3... dxe4 {[%clk 0:03:01]} 4.
Nxe4 {[%clk 0:03:02.7]} 4... Bd7 {[%clk 0:03:01.4]} 5. Nf3 {[%clk 0:03:01.7]}
5... Bc6 {[%clk 0:03:01.6]} 6. Bd3 {[%clk 0:03:02.2]} 6... Nd7 {[%clk
0:03:02.1]} 7. O-O {[%clk 0:03:00.5]} 7... Ngf6 {[%clk 0:03:02.5]} 8. Ng3 {[%clk
0:03:00.7]} 8... Be7 {[%clk 0:03:02.3]} 9. Re1 {[%clk 0:02:52.3]} 9... O-O
{[%clk 0:03:02]} 10. a4 {[%clk 0:02:41.1]} 10... Bd5 {[%clk 0:02:57.4]} 11. Ne5
{[%clk 0:02:29.2]} 11... c5 {[%clk 0:02:54]} 12. Nxd7 {[%clk 0:02:07.5]} 12...
Qxd7 {[%clk 0:02:52.2]} 13. dxc5 {[%clk 0:02:04.4]} 13... Bxc5 {[%clk
0:02:27.1]} 14. Bg5 {[%clk 0:02:04.2]} 14... Be7 {[%clk 0:02:22.5]} 15. Qe2
{[%clk 0:01:37.8]} 15... h6 {[%clk 0:02:16.2]} 16. Bf4 {[%clk 0:01:31.8]} 16...
Bd6 {[%clk 0:02:15.1]} 17. Bxd6 {[%clk 0:01:29.2]} 17... Qxd6 {[%clk 0:02:14.1]}
18. Rad1 {[%clk 0:01:29.1]} 18... Qf4 {[%clk 0:02:04.4]} 19. Ne4 {[%clk
0:01:21]} 19... Bxe4 {[%clk 0:01:51.7]} 20. Bxe4 {[%clk 0:01:21.9]} 20... Nxe4
{[%clk 0:01:49]} 21. Qxe4 {[%clk 0:01:22.8]} 21... Qc7 {[%clk 0:01:49.1]} 22.
Rd4 {[%clk 0:01:07.7]} 22... Rfd8 {[%clk 0:01:44.5]} 23. Red1 {[%clk 0:01:08.3]}
23... Rxd4 {[%clk 0:01:34.7]} 24. Rxd4 {[%clk 0:01:09.2]} 24... Rd8 {[%clk
0:01:28.7]} 25. c3 {[%clk 0:00:57]} 25... Rxd4 {[%clk 0:01:23.8]} 26. Qxd4
{[%clk 0:00:57.9]} 26... a6 {[%clk 0:01:13.2]} 27. h4 {[%clk 0:00:58.1]} 27...
b5 {[%clk 0:00:53.9]} 28. axb5 {[%clk 0:00:54.8]} 28... axb5 {[%clk 0:00:54.8]}
29. b3 {[%clk 0:00:54.6]} 29... Qa5 {[%clk 0:00:51.4]} 30. Qc5 {[%clk
0:00:37.5]} 30... g6 {[%clk 0:00:45.5]} 31. Kh2 {[%clk 0:00:29]} 31... Qa2
{[%clk 0:00:33.5]} 32. Qxb5 {[%clk 0:00:20.6]} 32... Qxf2 {[%clk 0:00:32.8]} 33.
Qb8+ {[%clk 0:00:21.5]} 33... Kh7 {[%clk 0:00:29.7]} 34. Qg3 {[%clk 0:00:21.9]}
34... Qb2 {[%clk 0:00:24.4]} 35. c4 {[%clk 0:00:21.6]} 35... e5 {[%clk
0:00:23.3]} 36. Qf3 {[%clk 0:00:20.3]} 36... Kg7 {[%clk 0:00:19]} 37. c5 {[%clk
0:00:20.5]} 37... Qc2 {[%clk 0:00:12.8]} 38. Qd5 {[%clk 0:00:20.8]} 38... e4
{[%clk 0:00:12.3]} 39. Qe5+ {[%clk 0:00:18]} 39... Kh7 {[%clk 0:00:12.2]} 40.
Qc7 {[%clk 0:00:17.5]} 40... Kg7 {[%clk 0:00:11.8]} 41. c6 {[%clk 0:00:17.5]}
41... e3 {[%clk 0:00:11.5]} 42. Qe5+ {[%clk 0:00:17.3]} 42... Kh7 {[%clk
0:00:11.5]} 43. Qxe3 {[%clk 0:00:11.3]} 43... Qxc6 {[%clk 0:00:05.8]} 44. Qf4
{[%clk 0:00:11.9]} 44... Kg7 {[%clk 0:00:03.1]} 45. Qe5+ {[%clk 0:00:10.2]}
45... Kh7 {[%clk 0:00:01.9]} 46. b4 {[%clk 0:00:10.5]} 46... f6 {[%clk
0:00:01.7]} 47. Qe7+ {[%clk 0:00:10.4]} 47... Kg8 {[%clk 0:00:01.5]} 48. Qc5
{[%clk 0:00:08.8]} 48... Qxc5 {[%clk 0:00:01.3]} 49. bxc5 {[%clk 0:00:09.7]}
49... Kf7 {[%clk 0:00:02]} 50. Kg3 {[%clk 0:00:07.9]} 50... f5 {[%clk
0:00:02.4]} 51. Kf4 {[%clk 0:00:05.7]} 51... Kf6 {[%clk 0:00:02.9]} 52. c6
{[%clk 0:00:03.2]} 52... g5+ {[%clk 0:00:03.5]} 53. Ke3 {[%clk 0:00:02.7]} 53...
Ke6 {[%clk 0:00:03.8]} 54. hxg5 {[%clk 0:00:02.5]} 54... hxg5 {[%clk 0:00:03.7]}
55. Kd4 {[%clk 0:00:03.4]} 1-0